Cogmind - Beta 15 @@@ ROGUE MODE // 2025.09.16 @ 18:06:42 Player: beans Result: Destroyed by H-66 Slayer with Heavy Assault Rifle Performance ------------- Evolutions (1) 500 Regions Visited (5) 1000 Robots Destroyed (4) 20 Value Destroyed (188) 188 Prototype IDs (3) 60 Alien Tech Used (0) 0 Bonus (1036) 1036 TOTAL SCORE: 2804 Bonus ------- Pacifist 200 Follower Combat Kills 236 Met Imprinter 300 Was Imprinted 300 Cogmind --------- Core Integrity 0/400 Matter 276/300 Energy 76/100 System Corruption 0% Temperature Cool (0) Movement Walking (120) Location -6/Proximity Caves Parts ------- > --- POWER (1) -------- (None) > --- PROPULSION (4) --- Enhanced Flexi-carbon Leg > --- UTILITY (2) ------ Signal Interpreter Experimental Thermal Shield > --- WEAPON (2) ------- Heavy Missile Launcher Improved Datajack > --- INVENTORY (5) ---- Advanced Particle Charger System Shield Wave Gun Coil Gun Plasma Cutter Peak State ------------ > --- POWER ------------ Light Angular Momentum Engine > --- PROPULSION ------- Enhanced Flexi-carbon Leg > --- UTILITY ---------- Signal Interpreter Experimental Thermal Shield > --- WEAPON ----------- Wave Gun Improved Datajack > --- INVENTORY -------- Advanced Particle Charger System Shield Coil Gun Heavy Missile Launcher Plasma Cutter [Rating: 33] Favorites ----------- Power Light Ion Engine Engine Light Ion Engine Propulsion Enhanced Flexi-carbon Leg Leg Enhanced Flexi-carbon Leg Flight Unit Flight Unit Utility Signal Interpreter Device Experimental Sensor Array Processor Signal Interpreter Weapon Improved Datajack Energy Gun Small Laser Ballistic Gun Coil Gun Launcher Rocket Launcher Special Weapon Plasma Cutter Special Melee Weapon Improved Datajack Build | -11 -10 -9 -9 -7 -6 ------- Run | Yrd Mat Mat Min Zio Pro Slots Evolved 2 | . . 2 . . . Power . | . . . . . . Propulsion 2 | . . 2 . . . Utility . | . . . . . . Weapon . | . . . . . . Parts Attached 17 | 2 2 4 1 2 6 Power 2 | 1 . . . . 1 Engine 2 | 1 . . . . 1 Core . | . . . . . . Reactor . | . . . . . . Propulsion 2 | . 1 . . . 1 Treads . | . . . . . . Leg 1 | . . . . . 1 Wheel . | . . . . . . Hover . | . . . . . . Flight 1 | . 1 . . . . Utility 4 | . 1 1 1 . 1 Device 2 | . . . 1 . 1 Storage . | . . . . . . Processor 2 | . 1 1 . . . Hackware . | . . . . . . Protection . | . . . . . . Artifact . | . . . . . . Weapon 9 | 1 . 3 . 2 3 Energy Gun 4 | 1 . 2 . . 1 Energy Cannon . | . . . . . . Ballistic Gun 1 | . . . . . 1 Ballistic Cannon . | . . . . . . Launcher 2 | . . . . 1 1 Special Weapon 1 | . . 1 . . . Impact Weapon . | . . . . . . Slashing Weapon . | . . . . . . Piercing Weapon . | . . . . . . Special Melee Weapon 1 | . . . . 1 . Unidentified Prototypes 3 | . . . 1 . 2 Parts Lost 5 | . . 4 . . 1 Power 2 | . . 1 . . 1 Propulsion 1 | . . 1 . . . Utility . | . . . . . . Weapon 2 | . . 2 . . . Highest Loss Streak 4 | . . 4 . . 1 To Critical Strikes . | . . . . . . Average Backups 4 | . . 2 5 5 5 Power . | . . . . . . Propulsion . | . . . . . . Utility . | . . . 1 1 1 Weapon 2 | . . 1 3 3 2 Tool/Special . | . . . . . . Unused Backups 6 | . . . . . 6 Power . | . . . . . . Propulsion . | . . . . . . Utility 3 | . . . . . 3 Weapon 3 | . . . . . 3 Tool/Special . | . . . . . . Average Slot Usage (%) 41 | . 32 46 33 38 48 Engine 2 | . 14 8 . . 1 Device 8 | . . . 3 11 11 Processor 11 | . 4 19 18 11 11 Energy Gun 4 | . 14 6 11 1 3 Ballistic Gun 2 | . . . . . 7 Launcher 4 | . . . . 9 . Special Melee Weapon 5 | . . . . 5 11 Peak Build Rating 33 | 2 4 6 11 15 33 Average Rating 13 | 1 2 4 6 13 22 On Entrance 5 | . 2 4 3 11 15 Naked Turns . | . . . . . . Heaviest Build 17 | 4 4 6 2 6 17 Greatest Support 28 | 3 4 4 3 3 28 Greatest Overweight (x) 2 | 1 1 1 . 1 2 Average Overweight (x) . | . . . . . 1 Largest Inventory Capacity 5 | 5 5 5 5 5 5 Average Capacity 5 | 5 5 5 5 5 5 Most Carried 5 | 2 1 5 5 5 5 Average Carried 4 | . . 2 5 5 4 Final Capacity 5 | 5 5 5 5 5 5 Final Carried 5 | . . 5 5 5 5 Class Distribution -------------------- 100% | Mutant Dominant Class ---------------- Mutant | -10/Materials Mutant | -9/Materials Mutant | -9/Mines Mutant | -7/Zion Mutant | -6/Proximity Caves Resources | -11 -10 -9 -9 -7 -6 ----------- Run | Yrd Mat Mat Min Zio Pro Matter Collected 397 | 220 . 55 . 30 92 Remotely . | . . . . . . Salvage Created 217 | . . 217 . . . Parts 15 | . . 15 . . . Haulers Intercepted . | . . . . . . Recyclers Shooed . | . . . . . . Parts Field Recycled . | . . . . . . Retrieved Matter . | . . . . . . Parts Self-Destructed 8 | . . . . . 8 Prevented 3 | . . . . . 3 Kills | -11 -10 -9 -9 -7 -6 ------- Run | Yrd Mat Mat Min Zio Pro Combat Hostiles Destroyed 4 | . . 4 . . . Guns 4 | . . 4 . . . Classes Destroyed 2 | . . 2 . . . Grunt 2 | . . 2 . . . Sentry 2 | . . 2 . . . Best Kill Streak 4 | . . 4 . . . Combat Bots Only 4 | . . 4 . . . Max Kills in Single Turn 1 | . . 1 . . . Gunslinging . | . . . . . . Exploded . | . . . . . . Melee . | . . . . . . Uniques/NPCs Destroyed . | . . . . . . Combat | -11 -10 -9 -9 -7 -6 -------- Run | Yrd Mat Mat Min Zio Pro Hostile Shots Fired 69 | . . 49 . . 20 Missed 16 | . . 10 . . 6 Hits 53 | . . 39 . . 14 Projectile 53 | . . 39 . . 14 Critical Strikes 1 | . . 1 . . . Damage Taken 862 | . 18 543 . . 301 Core 426 | . 18 288 . . 120 Absorbed by Shields . | . . . . . . Core Remaining (%) 96 | 100 92 . . . . Volleys Fired 28 | . 1 18 . . 9 Largest 2 | . 1 2 . . 1 Hottest 80 | . 40 80 . . 39 Shots Fired 31 | . 1 21 . . 9 Gun 30 | . 1 21 . . 8 Cannon . | . . . . . . Launcher 1 | . . . . . 1 Special . | . . . . . . Kinetic 8 | . . . . . 8 Thermal 9 | . 1 8 . . . Explosive 1 | . . . . . 1 Electromagnetic 13 | . . 13 . . . Robot Hit Streak 16 | . 1 16 . . 2 Robot Miss Streak 3 | . . 2 . . 3 Penetration Max . | . . . . . . Secondary Targets . | . . . . . . Shots Hit Robots 23 | . 1 16 . . 6 Core Hits 12 | . . 9 . . 3 Critical Kills . | . . . . . . Critical Parts Destroyed . | . . . . . . Critical Strikes . | . . . . . . Melee Attacks 2 | . . . . . 2 Impact . | . . . . . . Slashing . | . . . . . . Piercing . | . . . . . . Sneak Attacks 1 | . . . . . 1 Combat Hostiles . | . . . . . . Follow-up Attacks . | . . . . . . Damage Inflicted 447 | . 11 234 . . 202 Guns 313 | . 11 234 . . 68 Cannons . | . . . . . . Explosions 134 | . . . . . 134 Melee . | . . . . . . Ramming . | . . . . . . Kinetic 68 | . . . . . 68 Thermal 67 | . 11 56 . . . Explosive 134 | . . . . . 134 Electromagnetic 178 | . . 178 . . . Impact . | . . . . . . Slashing . | . . . . . . Piercing . | . . . . . . Highest Corruption 1 | . 1 . . . . Average Corruption 1 | . 1 . . . . Corruption Purged . | . . . . . . Corruption Blocked . | . . . . . . Overload Shots . | . . . . . . Overflow Damage . | . . . . . . Projectiles . | . . . . . . Explosions . | . . . . . . Melee . | . . . . . . Knockbacks . | . . . . . . Impact . | . . . . . . Kinetic . | . . . . . . Secondary . | . . . . . . Self-Inflicted Damage . | . . . . . . Shots . | . . . . . . Rammed . | . . . . . . Targets Rammed . | . . . . . . Kicked . | . . . . . . Crushed . | . . . . . . Highest Temperature 93 | . . 93 . . . Average Temperature 25 | . . 25 . . . Received Heat Transfer 309 | . . 261 . . 48 Siege Activations . | . . . . . . Martial Activations . | . . . . . . Shielding Activations . | . . . . . . Robots Disrupted . | . . . . . . Combat Hostiles . | . . . . . . Robots Corrupted . | . . . . . . Combat Hostiles . | . . . . . . Parts Fried 1 | . . 1 . . . Impact Corruptions . | . . . . . . Robots Melted . | . . . . . . Combat Hostiles . | . . . . . . Parts Melted . | . . . . . . Heat Transferred 150 | . 25 125 . . . Parts Sabotaged . | . . . . . . Parts Stolen . | . . . . . . Parts Stripped . | . . . . . . Power Chain Reactions . | . . . . . . Alert | -11 -10 -9 -9 -7 -6 ------- Run | Yrd Mat Mat Min Zio Pro Maximum Alert Level . | . . . . . . Low Security (%) 100 | 100 100 100 100 . . Level 1 . | . . . . . . Level 2 . | . . . . . . Level 3 . | . . . . . . Level 4 . | . . . . . . Level 5 . | . . . . . . High Security . | . . . . . . Max Security . | . . . . . . Peak Influence 100 | . . 100 23 . . Initial 23 | . . . 23 . . Average 12 | . . 30 14 . . Influence Increases 440 | . . 160 . . 280 Destroy 0b10 Robot/C 220 | . . 80 . . 140 Destroy Leader 20 | . . 20 . . . Allied During Kill 140 | . . . . . 140 Disable Machine 45 | . . 45 . . . Partial Spotted 15 | . . 15 . . . Influence Decreases 258 | . . 100 57 3 98 Entered New Map 40 | . . . 37 3 . Time Decay 168 | . . 60 20 . 88 Lost Part 50 | . . 40 . . 10 Squads Dispatched 2 | . . 1 . . 1 Investigation 1 | . . . . . 1 Extermination . | . . . . . . Reinforcement 1 | . . 1 . . . Assault . | . . . . . . Garrison . | . . . . . . Intercept . | . . . . . . Searches Triggered . | . . . . . . Construction Impeded . | . . . . . . Haulers Reinforced . | . . . . . . Active Scanning Responses . | . . . . . . Cargo Convoy Interrupts . | . . . . . . Stealth | -11 -10 -9 -9 -7 -6 --------- Run | Yrd Mat Mat Min Zio Pro Distress Signals . | . . . . . . Communications Jammed . | . . . . . . Distress Signals . | . . . . . . Times Spotted 18 | . 1 9 . . 8 Peak Tracking Total 7 | . 2 5 . . 7 Tactical Retreats . | . . . . . . Traps | -11 -10 -9 -9 -7 -6 ------- Run | Yrd Mat Mat Min Zio Pro Traps Triggered 1 | . 1 . . . . Indirectly . | . . . . . . Trap Hack Attempts . | . . . . . . Triggered . | . . . . . . Disarmed . | . . . . . . Reprogrammed . | . . . . . . Reused . | . . . . . . Traps Extracted . | . . . . . . Installed . | . . . . . . Triggered . | . . . . . . Machines | -11 -10 -9 -9 -7 -6 ---------- Run | Yrd Mat Mat Min Zio Pro Machines Disabled 7 | . . 3 . . 4 Max in Single Turn 1 | . . 1 . . 1 Machines Repaired . | . . . . . . Machines Dismantled 3 | . . 3 . . . Machines Sabotaged . | . . . . . . Overloaded Fab Kills . | . . . . . . Hacking | -11 -10 -9 -9 -7 -6 --------- Run | Yrd Mat Mat Min Zio Pro Machines Accessed 2 | . . . . 1 1 Terminals 1 | . . . . . 1 Fabricators . | . . . . . . Repair Stations . | . . . . . . Recycling Units . | . . . . . . Scanalyzers . | . . . . . . Garrison Access . | . . . . . . Total Hacks 7 | . . . . 4 3 Successful 7 | . . . . 4 3 Failed . | . . . . . . Catastrophic . | . . . . . . Database Lockouts . | . . . . . . Manual 2 | . . . . 1 1 Terminals 3 | . . . . . 3 Fabricators . | . . . . . . Repair Stations . | . . . . . . Recycling Units . | . . . . . . Scanalyzers . | . . . . . . Garrison Access . | . . . . . . Terminal Hacks 7 | . . . . 4 3 Record 3 | . . . . . 3 Part Schematic 4 | . . . . 4 . Fabricator Hacks . | . . . . . . Repair Station Hacks . | . . . . . . Recycling Unit Hacks . | . . . . . . Scanalyzer . | . . . . . . Garrison Access Hacks . | . . . . . . Unauthorized Hacks . | . . . . . . Terminals . | . . . . . . Fabricators . | . . . . . . Repair Stations . | . . . . . . Recycling Units . | . . . . . . Scanalyzers . | . . . . . . Garrison Access . | . . . . . . Data Cores Recovered . | . . . . . . Used . | . . . . . . Hacking Detections 1 | . . . . . 1 Full Trace Events 1 | . . . . . 1 Feedback Events . | . . . . . . Feedback Blocked . | . . . . . . Robot Schematics Acquired . | . . . . . . Robots Built . | . . . . . . Authchips . | . . . . . . Time . | . . . . . . Total Robot Build Rating . | . . . . . . Part Schematics Acquired 4 | . . . . 4 . Parts Built . | . . . . . . Authchips . | . . . . . . Time . | . . . . . . Total Part Build Rating . | . . . . . . Parts Repaired . | . . . . . . Time . | . . . . . . Parts Recycled . | . . . . . . Recycled Matter . | . . . . . . Retrieved Matter . | . . . . . . Retrieved Components . | . . . . . . Parts Scanalyzed . | . . . . . . Part Schematics Acquired . | . . . . . . Parts Damaged . | . . . . . . Bothacking | -11 -10 -9 -9 -7 -6 ------------ Run | Yrd Mat Mat Min Zio Pro Used RIF Installer . | . . . . . . Robots Hacked 1 | . . . . . 1 Non-combat . | . . . . . . Combat 1 | . . . . . 1 Robot Hacks Applied 1 | . . . . . 1 parse_system 1 | . . . . . 1 Relay Couplers Released . | . . . . . . Fabnet Peak Effective % . | . . . . . . Robots Rewired . | . . . . . . Allies Hacked . | . . . . . . Hacks Repelled . | . . . . . . Allies | -11 -10 -9 -9 -7 -6 -------- Run | Yrd Mat Mat Min Zio Pro Total Allies 8 | . . . . 8 . Largest Group 8 | . . . . 8 8 Highest-Rated Group 408 | . . . . 408 408 Highest-Rated Ally 96 | . . . . 96 96 Total Orders . | . . . . . . Ally Attacks 17 | . . . . . 17 Total Damage 777 | . . . . . 777 Kills 8 | . . . . . 8 Allies Corrupted . | . . . . . . Allies Melted 1 | . . . . . 1 Intel | -11 -10 -9 -9 -7 -6 ------- Run | Yrd Mat Mat Min Zio Pro Active Infowar (turns) 1403 | . . . 26 952 425 Sensors 1403 | . . . 26 952 425 Robot Analysis Total . | . . . . . . Derelict Logs Recovered . | . . . . . . Drone Launches . | . . . . . . Drone Recoveries . | . . . . . . Exploration | -11 -10 -9 -9 -7 -6 ------------- Run | Yrd Mat Mat Min Zio Pro Turns Passed 1995 | 35 200 150 52 955 603 Spaces Moved 1669 | 42 211 116 92 865 343 Core 1438 | 42 182 26 92 865 231 Treads . | . . . . . . Legs 112 | . . . . . 112 Wheels . | . . . . . . Hover . | . . . . . . Flight 119 | . 29 90 . . . Fastest Speed 40 | 50 40 40 50 50 50 Average Speed 94 | 73 91 44 50 91 137 Slowest Speed 150 | 100 100 100 50 100 150 Overloaded Moves . | . . . . . . Propulsion Burnouts . | . . . . . . Robots Hopped . | . . . . . . Potential Cave-ins . | . . . . . . Cave-ins Triggered . | . . . . . . Exploration Rate (%) 34 | 3 42 12 27 87 36 Regions Visited 5 Branch Regions 3 Pre-discovered Areas 1 | . . . . 1 . Known Exits Taken 3 | . . 1 1 1 . Unknown Exits Taken 2 | 1 1 . . . . Scrap Searched 6 | . . . . 3 3 Spaces Dug . | . . . . . . Terrain Destroyed 4 | . . . . . 4 Melee . | . . . . . . Projectile . | . . . . . . AOE 4 | . . . . . 4 Terrain Rammed . | . . . . . . Walls Destroyed . | . . . . . . Machines Disabled . | . . . . . . Actions | -11 -10 -9 -9 -7 -6 --------- Run | Yrd Mat Mat Min Zio Pro Total 2019 | 45 215 164 97 1031 467 Wait 264 | . . 3 4 162 95 Move 1664 | 41 210 115 91 864 343 Hop . | . . . . . . Pick Up 17 | 2 2 8 . . 5 Fast Attach 8 | . . . 1 3 4 Attach 8 | 2 2 4 . . . Detach 1 | . . 1 . . . Swap 3 | . . 1 . . 2 Drop 10 | . . . 1 2 7 Fire 28 | . 1 18 . . 9 Melee 2 | . . . . . 2 Ram . | . . . . . . Kick . | . . . . . . Crush . | . . . . . . Escape Stasis . | . . . . . . Rewire . | . . . . . . Trap . | . . . . . . Miscellaneous 14 | . . 14 . . . Route ------- -11/Scrapyard -10/Materials -9/Materials -9/Mines -7/Zion -6/Proximity Caves History --------- Turn | Location | Event 4 | -11/Scrapyard | Discovered new exit (range 15) 36 | -11/Scrapyard | Entered Materials 154 | -10/Materials | Discovered new exit (range 14) 236 | -10/Materials | Entered another Materials area 236 | -9/Materials | Evolved 2 slots: Propulsion x2 308 | -9/Materials | Build established: Mutant 367 | -9/Materials | Discovered new exit (range 12) 374 | -9/Materials | Core integrity fell below 50% 385 | -9/Materials | Identified exit to Mines 386 | -9/Materials | Entered Mines 404 | -9/Mines | Lost 4 parts (1p1n2w) 409 | -9/Mines | Found a damaged Exp. Sensor Array with a note attached 412 | -9/Mines | Found Prototype Device 412 | -9/Mines | Identified Exp. Sensor Array 433 | -9/Mines | A Derelict revealed a hidden shortcut to a safe place 436 | -9/Mines | Identified exit to Zion 438 | -9/Mines | Entered Zion 580 | -7/Zion | Given A8's code to call for help 776 | -7/Zion | Met Imprinter 793 | -7/Zion | Imprinted 795 | -7/Zion | Declared Zion's savior 864 | -7/Zion | Enhanced Grunt warped into view, answering call for help 872 | -7/Zion | Enhanced Grunt warped into view, answering call for help 904 | -7/Zion | Learned location of Armory (-4) 1223 | -7/Zion | Gained Derelict followers 1238 | -7/Zion | Discovered new exit (range 15) 1368 | -7/Zion | Identified exit to Proximity Caves 1393 | -7/Zion | Entered Proximity Caves 1393 | -6/Proximity Caves | Accompanied by 8 allies 1783 | -6/Proximity Caves | Attracted the attention of an 0b10 base 1792 | -6/Proximity Caves | Core integrity fell below 20% 1819 | -6/Proximity Caves | Found Prototype Device 1819 | -6/Proximity Caves | Identified Exp. Thermal Shield 1852 | -6/Proximity Caves | Learned Research trap positions 1996 | -6/Proximity Caves | Destroyed by H-66 Slayer with Heavy Assault Rifle Last Messages --------------- Dropped Hvy. Assault Rifle. Acquired Coil Gun. Connecting with Outpost Terminal... >>Query(Status Report 981X) INTERCEPTED DERELICT INTEL. Data stored: Research trap records. ALERT: Suspicious activity at Terminal P001. Dispatching Investigation squad. Searching scrap... Found Lgt. Angular Momentum Engine. Found Mak. Spear. Found 44 Matter. Acquired Lgt. Angular Momentum Engine. Acquired 10 matter. Slug penetrates Wall. Penetrated by Slug. Lgt. Angular Momentum Engine destroyed. Slug penetrates Wall. Outpost Terminal disabled. Penetrated by Slug. Map ----- +----------------------------------------------------+ | ?????????????# ##????###/ #??????????????????? | | ?????????????## ??????????#% #??????????????????? | | ??????????????#????#######?# #??????????????????? | | ?????????????????### #?# #??????????????????? | | ????????????????## #??# #??????????????????? | | ????????????????# #??# #??????????????????? | | ????????????????# ##?# #??????????????????? | | ?????????????#### ### #??????????????????? | | ?????????????# ## #??????????????????? | | ?????????????# ### ##?????????????????? | | ????????????## #?# #### ###???????????????? | | ???????????## #?# ## ##??????????????? | | ??????????## ####?## #??????????????? | | ??????????# #?????# #??????????????? | | ??????????## ##???## #??????????????? | | ???????????### ##?## #?????????????? | | ?????????????## ### ### #????????????? | | ??????????????## ##?? ####????????????? | | ???????????????## ##??? ##???????????????? | | ????????????????# #????###????????????????? | | ???????????????## M#???????????????????????? | | ??????????????## #???????????????????????? | | ??????????????# #??###??????????????????? | | ?????????????# ### ### ##?????????????????? | | ??????????#### ##?## ##????? ?????????? | | ????????## ## #???# @ #?### ????????? | | ????????# #####????# ## ???????? | | ????????# #????????# ???????? | | ??????## #?????????# ???????? | | ??##### ##????####### ??????? | | ### ##?????# ??????? | | ##??????# ??????? | | ##???????# ######;#### ???????? | | ## ##????????# #]] "# # ????????? | | ?# ###?????????# "]] [ "# ##?????????? | | ?# ##??????##### # % " ## "????? | | ?# #???#### ## " = " #??????? | | ?# #??## # %!! # # ????????? | | ?# #### # h %"! #?# #?????????? | | ?## # h [ #???????????????? | | ??## # %" ""# #???????????????? | | #??# #### #"" """# #???????????????? | | #??# ?# # ####+%""### #???????????????? | | ##?# # # ## #???????????????? | | ### #### #### % #???????????????? | | ######??# #??##### ##???????????????? | | #??###?# #??????## ###????????????????? | | ### #?# #???????# ###?##?????????????? | | ## ### ?# ##?????## ## ##????????????? | | ????# ??# ####?# #????????????? | +----------------------------------------------------+ Best States ------------- Heat Dissipation 28 Energy Generation 18 Energy Capacity 150 Matter Stores 300 Matter Capacity 300 Sight Range 16 Robot Scan Range 20 Terrain Scan Density 10 Resistance: TH 30 Evasion (%) 62 Targeting Accuracy 5 Item Schematics ----------------- Riot Gun | -7/Zion | Free Barrage Gun | -7/Zion | Free Ripper | -7/Zion | Free Bore Cannon | -7/Zion | Free Robot Schematics ------------------ None Fabricated ------------ Nothing Repaired ---------- Nothing Alien Tech Used ----------------- None Achievements -------------- None Challenges ------------ None Game ------ Seed MissileGodChargecaster Manual? 0 Play Time 00:12:37 Cumulative 141.3 hours Start 2025.09.16 @ 17:54:32 End 2025.09.16 @ 18:06:42 Sessions 1 Manual Loads 0 Difficulty Rogue Special Mode None Game No. 476 Rogue 476 Adventurer 0 Explorer 0 Win Type - Total 0 Types 0/0/0/0/0/0/0/0/0/0 Lore% 52 Gallery% 49 Achievement% 37 Wizard Run 0 Options --------- Layout 2 ASCII 0 Keyboard 0 Movement Mouse Keybinds 0 Fullscreen 2 Font 24/Smallcaps Map View 50x44 Zoom Use 0% Tactical HUD 0 Map Filters NONE Filters NONE Steam 1 RUN: 776e0ac7-bf1d-4c3a-b4ae-8353672c683e